Cogmind - Beta 14 @@@ ROGUE MODE // 2024.11.24 @ 14:45:32 // Winter2019/RPGLIKE Player: admiral_len Result: Destroyed by G-47 Trooper with Particle Gun Performance ------------- Evolutions (2) 1000 Regions Visited (4) 800 Robots Destroyed (42) 210 Value Destroyed (1370) 1370 Prototype IDs (0) 0 Alien Tech Used (0) 0 Bonus (222) 222 TOTAL SCORE: 3602 Bonus ------- High Alert Combat Kills 22 Entered Garrisons 200 Cogmind --------- Core Integrity 0/1250 Matter 482/500 Energy 240/240 System Corruption 0% Temperature Cool (50) Movement Treading (165) Location -8/Garrison Parts ------- > --- POWER (1) -------- Nuclear Core > --- PROPULSION (2) --- Light Treads Armored Treads > --- UTILITY (2) ------ Advanced Targeting Computer > --- WEAPON (3) ------- Light Assault Rifle Heavy Assault Rifle Subdweller Machine Gun > --- INVENTORY (0) ---- (None) Peak State ------------ > --- POWER ------------ Nuclear Core > --- PROPULSION ------- Light Treads Light Treads > --- UTILITY ---------- Advanced Targeting Computer Improved Light Armor Plating > --- WEAPON ----------- Subdweller Machine Gun Barrage Gun > --- INVENTORY -------- (None) [Rating: 16] Favorites ----------- Power Ion Engine Engine Ion Engine Power Core Nuclear Core Propulsion Light Treads Treads Light Treads Utility Targeting Computer Processor Targeting Computer Protection Scrap Shield Weapon Light Assault Rifle Ballistic Gun Light Assault Rifle Build | -11 -10 -10 -8 -8 ------- Run | Yrd Mat Sub Mat Gar Slots Evolved 4 | 3 . . . 1 Power . | . . . . . Propulsion 1 | 1 . . . . Utility 1 | 1 . . . . Weapon 2 | 1 . . . 1 Parts Attached 19 | 5 2 4 7 1 Power 3 | 1 . . 2 . Engine 1 | 1 . . . . Core 2 | . . . 2 . Reactor . | . . . . . Propulsion 3 | 2 . . 1 . Treads 3 | 2 . . 1 . Leg . | . . . . . Wheel . | . . . . . Hover . | . . . . . Flight . | . . . . . Utility 6 | . 2 1 3 . Device . | . . . . . Storage . | . . . . . Processor 3 | . 2 . 1 . Hackware . | . . . . . Protection 3 | . . 1 2 . Artifact . | . . . . . Weapon 7 | 2 . 3 1 1 Energy Gun . | . . . . . Energy Cannon . | . . . . . Ballistic Gun 7 | 2 . 3 1 1 Ballistic Cannon . | . . . . . Launcher . | . . . . . Special Weapon . | . . . . . Impact Weapon . | . . . . . Slashing Weapon . | . . . . . Piercing Weapon . | . . . . . Special Melee Weapon . | . . . . . Unidentified Prototypes . | . . . . . Parts Lost 4 | . . . 3 1 Power . | . . . . . Propulsion 1 | . . . 1 . Utility 3 | . . . 2 1 Weapon . | . . . . . Highest Loss Streak 2 | . . . 2 1 To Critical Strikes . | . . . . . Average Slot Usage (%) 90 | . 97 84 92 89 Engine 11 | . 14 14 2 . Core 2 | . . . 11 12 Treads 27 | . 28 28 27 25 Processor 10 | . 25 . 9 12 Protection 9 | . . 14 11 11 Ballistic Gun 27 | . 28 27 27 28 Peak Build Rating 16 | 5 7 12 16 16 Average Rating 9 | 4 6 9 14 15 On Entrance 7 | . 5 7 12 15 Naked Turns . | . . . . . Heaviest Build 30 | 7 7 30 30 18 Greatest Support 50 | 40 40 40 40 50 Greatest Overweight (x) 2 | 2 . . . . Average Overweight (x) . | . . . . . Largest Inventory Capacity . | . . . . . Average Capacity . | . . . . . Most Carried . | . . . . . Average Carried . | . . . . . Final Capacity . | . . . . . Final Carried . | . . . . . Class Distribution -------------------- 99% | Mutant Dominant Class ---------------- Mutant | -10/Materials Mutant | -10/Subcaves Mutant | -8/Materials Mutant | -8/Garrison Resources | -11 -10 -10 -8 -8 ----------- Run | Yrd Mat Sub Mat Gar Matter Collected 1127 | 306 102 104 510 105 Remotely . | . . . . . Salvage Created 1388 | . 144 191 856 197 Parts 87 | . 16 11 46 14 Haulers Intercepted . | . . . . . Recyclers Shooed 1 | . . . 1 . Parts Field Recycled . | . . . . . Retrieved Matter . | . . . . . Parts Self-Destructed 22 | . . 22 . . Prevented . | . . . . . Kills | -11 -10 -10 -8 -8 ------- Run | Yrd Mat Sub Mat Gar Combat Hostiles Destroyed 37 | . 6 4 19 8 Guns 37 | . 6 4 19 8 Classes Destroyed 13 | . 3 1 9 . Worker 1 | . 1 . . . Builder 1 | . . . 1 . Recycler 1 | . . . 1 . Mechanic 1 | . . . 1 . Watcher 1 | . . . 1 . Swarmer 11 | . 3 1 3 4 Grunt 16 | . 3 1 8 4 Brawler 2 | . . . 2 . Duelist 1 | . . . 1 . Sentry 2 | . . . 2 . Specialist 2 | . . . 2 . Heavy 1 | . . . 1 . Subdweller 2 | . . 2 . . Best Kill Streak 6 | . 4 1 6 6 Combat Bots Only 6 | . 3 1 5 6 Max Kills in Single Turn 2 | . 1 1 2 2 Gunslinging 1 | . . . . 1 Exploded . | . . . . . Melee . | . . . . . Uniques/NPCs Destroyed . | . . . . . Combat | -11 -10 -10 -8 -8 -------- Run | Yrd Mat Sub Mat Gar Hostile Shots Fired 275 | . 37 21 148 69 Missed 79 | . 8 5 43 23 Damage Taken 3151 | . 280 396 1942 533 Core 2245 | . 225 194 1438 388 Absorbed by Shields . | . . . . . Redirected to Core 1900 | . 180 170 1276 274 Ignored by Resistances 322 | . . 27 216 79 Core Remaining (%) 95 | 100 . 91 . . Volleys Fired 136 | . 21 28 66 21 Largest 3 | . 2 2 2 3 Hottest 73 | . 40 58 58 73 Shots Fired 275 | . 42 56 127 50 Gun 275 | . 42 56 127 50 Cannon . | . . . . . Launcher . | . . . . . Special . | . . . . . Kinetic 275 | . 42 56 127 50 Thermal . | . . . . . Explosive . | . . . . . Electromagnetic . | . . . . . Robot Hit Streak 25 | . 9 24 24 25 Robot Miss Streak 4 | . 1 3 4 2 Penetration Max . | . . . . . Secondary Targets 9 | . . 1 3 5 Max Gunslinging Chain 1 | . . 1 1 1 Shots Hit Robots 215 | . 29 47 96 43 Core Hits 83 | . 16 13 38 16 Critical Kills 1 | . . . 1 . Critical Parts Destroyed 3 | . . . 3 . Critical Strikes 4 | . . . 4 . Destroy 4 | . . . 4 . Melee Attacks . | . . . . . Impact . | . . . . . Slashing . | . . . . . Piercing . | . . . . . Sneak Attacks . | . . . . . Combat Hostiles . | . . . . . Follow-up Attacks . | . . . . . Damage Inflicted 3256 | . 257 303 1979 717 Guns 3253 | . 257 303 1976 717 Cannons . | . . . . . Explosions . | . . . . . Melee . | . . . . . Ramming 3 | . . . 3 . Kinetic 3253 | . 257 303 1976 717 Thermal . | . . . . . Explosive . | . . . . . Electromagnetic . | . . . . . Impact . | . . . . . Slashing . | . . . . . Piercing . | . . . . . Highest Corruption . | . . . . . Average Corruption . | . . . . . Corruption Purged . | . . . . . Corruption Blocked . | . . . . . Overload Shots . | . . . . . Overflow Damage . | . . . . . Projectiles . | . . . . . Explosions . | . . . . . Melee . | . . . . . Knockbacks . | . . . . . Impact . | . . . . . Kinetic . | . . . . . Secondary . | . . . . . Self-Inflicted Damage . | . . . . . Shots . | . . . . . Rammed 1 | . . . 1 . Targets Rammed 1 | . . . 1 . Kicked . | . . . . . Crushed . | . . . . . Highest Temperature 84 | . 21 . 61 84 Average Temperature 16 | . 10 . 10 44 Received Heat Transfer 1263 | . 102 87 777 297 Siege Activations . | . . . . . Robots Corrupted . | . . . . . Combat Hostiles . | . . . . . Parts Fried . | . . . . . Impact Corruptions . | . . . . . Robots Melted . | . . . . . Combat Hostiles . | . . . . . Parts Melted . | . . . . . Heat Transferred . | . . . . . Parts Sabotaged . | . . . . . Parts Stolen . | . . . . . Parts Stripped . | . . . . . Power Chain Reactions . | . . . . . Alert | -11 -10 -10 -8 -8 ------- Run | Yrd Mat Sub Mat Gar Peak Influence 426 | . 145 . 387 426 Initial 251 | . . . . 251 Average 94 | . 28 . 165 335 Maximum Alert Level 2 | . . . 1 2 Low Security (%) 83 | 100 100 . 69 . Level 1 16 | . . . 30 89 Level 2 . | . . . . 10 Level 3 . | . . . . . Level 4 . | . . . . . Level 5 . | . . . . . High Security . | . . . . . Max Security . | . . . . . Squads Dispatched 4 | . 1 . 3 . Investigation . | . . . . . Extermination . | . . . . . Reinforcement 3 | . 1 . 2 . Assault . | . . . . . Garrison 1 | . . . 1 . Intercept . | . . . . . Searches Triggered . | . . . . . Construction Impeded . | . . . . . Haulers Reinforced . | . . . . . Active Scanning Responses . | . . . . . Cargo Convoy Interrupts . | . . . . . Stealth | -11 -10 -10 -8 -8 --------- Run | Yrd Mat Sub Mat Gar Distress Signals 1 | . . . 1 . Communications Jammed . | . . . . . Distress Signals . | . . . . . Times Spotted 59 | . 9 14 26 10 Peak Tracking Total 5 | . 5 2 5 5 Tactical Retreats 3 | . . . 3 . Traps | -11 -10 -10 -8 -8 ------- Run | Yrd Mat Sub Mat Gar Traps Triggered 1 | . . 1 . . Indirectly . | . . . . . Trap Hack Attempts . | . . . . . Triggered . | . . . . . Disarmed . | . . . . . Reprogrammed . | . . . . . Reused . | . . . . . Traps Extracted . | . . . . . Installed . | . . . . . Triggered . | . . . . . Machines | -11 -10 -10 -8 -8 ---------- Run | Yrd Mat Sub Mat Gar Machines Disabled 1 | . . . 1 . Max in Single Turn 1 | . . . 1 . Machines Repaired . | . . . . . Machines Dismantled . | . . . . . Machines Sabotaged . | . . . . . Overloaded Fab Kills . | . . . . . Hacking | -11 -10 -10 -8 -8 --------- Run | Yrd Mat Sub Mat Gar Machines Accessed 2 | . 1 . 1 . Terminals . | . . . . . Fabricators . | . . . . . Repair Stations . | . . . . . Recycling Units 1 | . 1 . . . Scanalyzers . | . . . . . Garrison Access 1 | . . . 1 . Total Hacks 2 | . 1 . 1 . Successful 2 | . 1 . 1 . Failed . | . . . . . Catastrophic . | . . . . . Database Lockouts . | . . . . . Manual . | . . . . . Terminals . | . . . . . Fabricators . | . . . . . Repair Stations . | . . . . . Recycling Units 1 | . 1 . . . Scanalyzers . | . . . . . Garrison Access 1 | . . . 1 . Terminal Hacks . | . . . . . Fabricator Hacks . | . . . . . Repair Station Hacks . | . . . . . Recycling Unit Hacks 1 | . 1 . . . Report Inventory 1 | . 1 . . . Scanalyzer . | . . . . . Garrison Access Hacks 1 | . . . 1 . Unlock Access 1 | . . . 1 . Unauthorized Hacks . | . . . . . Terminals . | . . . . . Fabricators . | . . . . . Repair Stations . | . . . . . Recycling Units . | . . . . . Scanalyzers . | . . . . . Garrison Access . | . . . . . Data Cores Recovered . | . . . . . Used . | . . . . . Hacking Detections . | . . . . . Full Trace Events . | . . . . . Feedback Events . | . . . . . Feedback Blocked . | . . . . . Robot Schematics Acquired . | . . . . . Robots Built . | . . . . . Authchips . | . . . . . Time . | . . . . . Total Robot Build Rating . | . . . . . Part Schematics Acquired . | . . . . . Parts Built . | . . . . . Authchips . | . . . . . Time . | . . . . . Total Part Build Rating . | . . . . . Parts Repaired . | . . . . . Time . | . . . . . Parts Recycled . | . . . . . Recycled Matter . | . . . . . Retrieved Matter . | . . . . . Retrieved Components . | . . . . . Parts Scanalyzed . | . . . . . Part Schematics Acquired . | . . . . . Parts Damaged . | . . . . . Bothacking | -11 -10 -10 -8 -8 ------------ Run | Yrd Mat Sub Mat Gar Used RIF Installer . | . . . . . Robots Hacked . | . . . . . Non-combat . | . . . . . Combat . | . . . . . Robot Hacks Applied . | . . . . . Relay Couplers Released . | . . . . . Fabnet Peak Effective % . | . . . . . Robots Rewired . | . . . . . Allies Hacked . | . . . . . Hacks Repelled . | . . . . . Allies | -11 -10 -10 -8 -8 -------- Run | Yrd Mat Sub Mat Gar Total Allies . | . . . . . Largest Group . | . . . . . Highest-Rated Group . | . . . . . Highest-Rated Ally . | . . . . . Total Orders . | . . . . . Ally Attacks . | . . . . . Total Damage . | . . . . . Kills . | . . . . . Allies Corrupted . | . . . . . Allies Melted . | . . . . . Intel | -11 -10 -10 -8 -8 ------- Run | Yrd Mat Sub Mat Gar Robot Analysis Total . | . . . . . Derelict Logs Recovered . | . . . . . Drone Launches . | . . . . . Drone Recoveries . | . . . . . Exploration | -11 -10 -10 -8 -8 ------------- Run | Yrd Mat Sub Mat Gar Turns Passed 3827 | 64 1187 1744 685 147 Spaces Moved 1688 | 41 302 1021 275 49 Core 13 | 13 . . . . Treads 1675 | 28 302 1021 275 49 Legs . | . . . . . Wheels . | . . . . . Hover . | . . . . . Flight . | . . . . . Fastest Speed 50 | 50 160 160 160 165 Average Speed 159 | 140 160 160 160 165 Slowest Speed 165 | 160 160 160 165 165 Overloaded Moves . | . . . . . Propulsion Burnouts . | . . . . . Robots Hopped . | . . . . . Cave-ins Triggered . | . . . . . Exploration Rate (%) 33 | 5 46 71 35 12 Regions Visited 4 Branch Regions 1 Pre-discovered Areas . | . . . . . Known Exits Taken 1 | . . . 1 . Unknown Exits Taken 3 | 1 1 1 . . Scrap Searched 5 | . . 5 . . Spaces Dug . | . . . . . Terrain Destroyed 4 | . . . 4 . Melee . | . . . . . Projectile 4 | . . . 4 . AOE . | . . . . . Terrain Rammed . | . . . . . Walls Destroyed . | . . . . . Machines Disabled . | . . . . . Actions | -11 -10 -10 -8 -8 --------- Run | Yrd Mat Sub Mat Gar Total 2569 | 45 971 1085 394 74 Wait 676 | . 643 17 16 . Move 1684 | 40 301 1020 274 49 Hop . | . . . . . Pick Up . | . . . . . Fast Attach 19 | 5 2 4 7 1 Attach . | . . . . . Detach . | . . . . . Swap . | . . . . . Drop 7 | . . 5 2 . Fire 136 | . 21 28 66 21 Melee . | . . . . . Ram . | . . . . . Kick . | . . . . . Crush 1 | . . . 1 . Escape Stasis . | . . . . . Rewire . | . . . . . Trap . | . . . . . Miscellaneous 46 | . 4 11 28 3 Route ------- -11/Scrapyard -10/Materials (discovered 2 exits: [*Min] / [*Sub]) -10/Subcaves (discovered 2 exits: *Mat x2) -8/Materials (discovered 3 exits: [*Fac] / [*Sto] / Gar) -8/Garrison History --------- Turn | Location | Event 8 | -11/Scrapyard | Upgraded with Propulsion slot (x1) 8 | -11/Scrapyard | Upgraded with Utility slot (x1) 8 | -11/Scrapyard | Upgraded with Weapon slot (x1) 11 | -11/Scrapyard | Discovered new exit (range 15) 65 | -11/Scrapyard | Entered Materials 317 | -10/Materials | Build established: Mutant 353 | -10/Materials | Discovered new exit (range 9) 1208 | -10/Materials | Discovered new exit (range 6) 1252 | -10/Materials | Entered Subcaves 1254 | -10/Subcaves | Reached level 2 1569 | -10/Subcaves | Discovered new exit (range 11) 1590 | -10/Subcaves | Ambushed by Subdwellers from Twisted Machinery 1983 | -10/Subcaves | Discovered new exit (range 8) 2315 | -10/Subcaves | A swath of the cavern ceiling suddenly collapsed 2593 | -10/Subcaves | Shifting Twisted Machinery released Sub. Laser 2996 | -10/Subcaves | Entered Materials 2998 | -8/Materials | Reached level 3 3174 | -8/Materials | Discovered new exit (range 12) 3371 | -8/Materials | Reached level 4 3513 | -8/Materials | Discovered new exit (range 5) 3602 | -8/Materials | Garrison activated, responded to threat 3613 | -8/Materials | Core integrity fell below 50% 3634 | -8/Materials | Core integrity fell below 20% 3679 | -8/Materials | Identified exit to Garrison 3681 | -8/Materials | Entered Garrison 3683 | -8/Garrison | Reached level 5 3685 | -8/Garrison | Upgraded with Weapon slot (x1) 3800 | -8/Garrison | Triggered checkpoint 3828 | -8/Garrison | Destroyed by G-47 Trooper with Particle Gun Last Messages --------------- S-10 Pest destroyed. Switching to secondary target: S-10 Pest. S-10 Pest destroyed. G-47 Trooper destroyed. Switching to secondary target: G-47 Trooper. G-47 Trooper destroyed. Acquired 65 matter. Used Protomatter to restore core integrity (+33, depleted) Used Protomatter to restore core integrity (+21, depleted) Acquired Lgt. Assault Rifle. Acquired 10 matter. Beams of light sweep through the air. An alarm sounds. Acquired 6 matter. Lgt. Armor Plating destroyed. G-47 Trooper destroyed. Switching to secondary target: G-47 Trooper. Acquired 6 matter. G-47 Trooper destroyed. Switching to secondary target: G-47 Trooper. Acquired 6 matter. Map ----- +----------------------------------------------------+ | ?????????????????????????????????????????????????? | | ?????????????????????????????????????????????????? | | ?????????????????????????????????????????????????? | | ?????????????????????????????????????????????????? | | ?????????????????????????????????????????????????? | | ?????????????????????????????????????????????????? | | ?????????????????????????????????????????????????? | | ?????????????????????????????????????????????????? | | ?????????????????????????????????????????????????? | | ?????????????????????????????????????????????????? | | ?????????????????????????????????????????????????? | | ???????????????????????#####?????????????????????? | | ??????????????????????? ?????????????????????? | | ??????????????????????? ?????????????????????? | | ??????????????????????? ????????? ???????????? | | ???????????????????????# #???????? #??????????? | | ?????????????????????### ##??? ## #??????????? | | ?????????????????????# ?? "??????????? | | ?????????????????????# ?? "??????????? | | ?????????????????????? ?? ????????????? | | ??????????????????????? ?? ??????????????? | | ???????????????????????#g= #? #??? #??????????? | | ????????????############%[%## ## ###????????? | | ??????????? !! ???????? | | ??????????? == ???????? | | ??????????????????######%@%%g #??????????? | | ???????????????????????##%*## ######??????????? | | ????????????????????????#= #?? #???????????????? | | ????????????????????????#[=#???###???????????????? | | ????????????????????????# %#?????????????????????? | | ????????????????????????# %#?????????????????????? | | ????????????????????????#[*#?????????????????????? | | ????????????????????????# #?????????????????????? | | ???###################### #?????????????????????? | | ???# #?????????????????????? | | ???# #?????????????????????? | | ???# ######################?????????????????????? | | ???# #??????????????????????????????????????????? | | ???# #??????????????????????????????????????????? | | ???# #??????????????????????????????????????????? | | ???# #??????????????????????????????????????????? | | ???# #??????????????????????????????????????????? | | ???# #??????????????????????????????????????????? | | ???# #??????????????????????????????????????????? | | ???# ###????????????????????????????????????????? | | ???# #????????????????????????????????????????? | | ???# #????????????????????????????????????????? | | ???# #????????????????????????????????????????? | | ???# ###????????????????????????????????????????? | | ???# #??????????????????????????????????????????? | +----------------------------------------------------+ Best States ------------- Heat Dissipation 37 Energy Generation 14 Energy Capacity 250 Matter Stores 500 Matter Capacity 500 Sight Range 16 Robot Scan Range 2 Terrain Scan Density 10 Armor Coverage 800 Resistance: KI 10 Resistance: TH 10 Resistance: EX 10 Evasion (%) 40 Targeting Accuracy 10 Recoil Reduction 2 Defensive Hacking 10 Item Schematics ----------------- None Robot Schematics ------------------ None Fabricated ------------ Nothing Alien Tech Used ----------------- None Achievements -------------- None Challenges ------------ None RPGLIKE | -11 -10 -10 -8 -8 --------- Run | Yrd Mat Sub Mat Gar Levels Raised 4 | . . 1 2 1 XP Earned 10320 | 3000 700 1250 3910 1460 XP Spent 8975 | 2825 . 1630 2970 1550 Upgrades 38 | 7 . 13 14 4 Propulsion Slot 1 | 1 . . . . Utility Slot 1 | 1 . . . . Weapon Slot 2 | 1 . . . 1 Core Integrity 13 | . . 8 5 . Heat Dissipation 2 | . . . 2 . Matter Storage 4 | 2 . . 2 . Mass Support 2 | . . . . 2 Sensor Range 1 | . . . . 1 Ranged Accuracy 3 | 2 . . 1 . Hack Defense % 2 | . . 2 . . KI Resistance % 2 | . . 1 1 . TH Resistance % 2 | . . 1 1 . EX Resistance % 2 | . . 1 1 . KI Damage % 1 | . . . 1 . Protomatter Created 386 | . 86 . 235 65 Integrity Restored 993 | . 84 252 603 54 Core 993 | . 84 252 603 54 Protomatter Decayed 89 | . . 55 34 . Game ------ Seed HellfireThermicReplicator Manual? 0 Play Time 00:20:38 Cumulative 34.1 hours Start 2024.11.24 @ 14:26:04 End 2024.11.24 @ 14:45:32 Sessions 1 Manual Loads 0 Difficulty Rogue Special Mode Winter2019/RPGLIKE Game No. 55 Rogue 55 Adventurer 0 Explorer 0 Win Type - Total 0 Types 0/0/0/0/0/0/0/0/0 Lore% 7 Gallery% 23 Achievement% 26 Wizard Run 0 Options --------- Layout 0 ASCII 0 Keyboard 0 Movement Mouse Keybinds 0 Fullscreen 1 Font 18/SmallcapsGlow Map View 38x25 Zoom Use 99% Tactical HUD 0 Map Filters NONE Filters NONE Steam 1 RUN: 684b1537-5c08-4efb-b6c2-1d8dd725226e